[Event "Live Chess"]
[Site "Chess.com"]
[Date "2023.09.16"]
[Round "-"]
[White "Theo_Sossai"]
[Black "Dfran2015"]
[Result "1/2-1/2"]
[WhiteElo "420"]
[BlackElo "555"]
[TimeControl "900+5"]
[EndTime "7:46:07 PDT"]
[Termination "Empate por repetição"]

1. e4 {[%clk 0:14:45.3]} 1... e5 {[%clk 0:15:02.3]} 2. Bc4 {[%clk 0:14:44.1]}
2... Nf6 {[%clk 0:15:03.7]} 3. Bb3 {[%clk 0:14:46.1]} 3... Nc6 {[%clk
0:14:56.6]} 4. Qe2 {[%clk 0:14:49.4]} 4... d6 {[%clk 0:14:54.3]} 5. Qc4 {[%clk
0:14:47.6]} 5... Be6 {[%clk 0:14:52.4]} 6. Qc3 {[%clk 0:14:48]} 6... Bxb3 {[%clk
0:14:51.9]} 7. Qxb3 {[%clk 0:14:51.4]} 7... Nxe4 {[%clk 0:14:54.4]} 8. Ne2
{[%clk 0:14:48.6]} 8... Qf6 {[%clk 0:14:55.8]} 9. O-O {[%clk 0:14:50.4]} 9...
O-O-O {[%clk 0:14:52.1]} 10. Qh3+ {[%clk 0:14:48.2]} 10... Qe6 {[%clk
0:14:45.4]} 11. Qh4 {[%clk 0:14:47.8]} 11... Be7 {[%clk 0:14:37.5]} 12. Qh5
{[%clk 0:14:44.5]} 12... g6 {[%clk 0:14:34.7]} 13. Qh6 {[%clk 0:14:46]} 13...
Bg5 {[%clk 0:14:30.7]} 14. Qg7 {[%clk 0:14:43.5]} 14... Qf6 {[%clk 0:14:14.5]}
15. Qxf6 {[%clk 0:14:41.1]} 15... Bxf6 {[%clk 0:14:13.8]} 16. f3 {[%clk
0:14:36.7]} 16... Ng5 {[%clk 0:14:08.7]} 17. h4 {[%clk 0:14:30.7]} 17... Ne6
{[%clk 0:14:04.4]} 18. g3 {[%clk 0:14:29]} 18... Bg7 {[%clk 0:14:05.4]} 19. g4
{[%clk 0:14:30.6]} 19... g5 {[%clk 0:14:03.9]} 20. hxg5 {[%clk 0:14:32.6]} 20...
Nxg5 {[%clk 0:14:07.7]} 21. Ng3 {[%clk 0:14:30.3]} 21... Nd4 {[%clk 0:13:50.9]}
22. c3 {[%clk 0:14:23.4]} 22... Nc2 {[%clk 0:13:46.6]} 23. Nf5 {[%clk
0:14:14.2]} 23... Bf6 {[%clk 0:13:36.5]} 24. Na3 {[%clk 0:14:07.7]} 24... Nxa1
{[%clk 0:13:32.9]} 25. Nh6 {[%clk 0:14:06]} 25... Nh3+ {[%clk 0:13:15.7]} 26.
Kg2 {[%clk 0:14:02.7]} 26... Nf4+ {[%clk 0:13:14.5]} 27. Kf2 {[%clk 0:14:04.1]}
27... Nd3+ {[%clk 0:13:13]} 28. Ke2 {[%clk 0:14:07.2]} 28... Nf4+ {[%clk
0:13:09.2]} 29. Kf2 {[%clk 0:14:04.5]} 29... b5 {[%clk 0:12:53.8]} 30. Nxf7
{[%clk 0:14:05.3]} 30... Rdf8 {[%clk 0:12:50.3]} 31. Nxh8 {[%clk 0:14:04.4]}
31... Bxh8 {[%clk 0:12:50.2]} 32. Nxb5 {[%clk 0:14:00.4]} 32... Nc2 {[%clk
0:12:53.8]} 33. Nxa7+ {[%clk 0:14:01.5]} 33... Kb7 {[%clk 0:12:55.1]} 34. Nb5
{[%clk 0:13:59.5]} 34... Nd3+ {[%clk 0:12:53.8]} 35. Ke2 {[%clk 0:13:57.1]}
35... Nxb2 {[%clk 0:12:49.8]} 36. Bxb2 {[%clk 0:13:58.8]} 36... Kb6 {[%clk
0:12:44.9]} 37. Na3 {[%clk 0:13:58.9]} 37... Nxa3 {[%clk 0:12:46.7]} 38. Bxa3
{[%clk 0:14:01.7]} 38... Kc6 {[%clk 0:12:45]} 39. d4 {[%clk 0:13:49.3]} 39...
exd4 {[%clk 0:12:39.1]} 40. cxd4 {[%clk 0:13:50.8]} 40... Re8+ {[%clk 0:12:40]}
41. Kf2 {[%clk 0:13:53.4]} 41... Kd5 {[%clk 0:12:41.8]} 42. Rd1 {[%clk 0:13:46]}
42... Bxd4+ {[%clk 0:12:40.1]} 43. Kg3 {[%clk 0:13:38.4]} 43... Kc4 {[%clk
0:12:41.8]} 44. Rc1+ {[%clk 0:13:40.5]} 44... Kd3 {[%clk 0:12:42.3]} 45. Rxc7
{[%clk 0:13:41.5]} 45... d5 {[%clk 0:12:34.2]} 46. Rxh7 {[%clk 0:13:44]} 46...
Be5+ {[%clk 0:12:34.4]} 47. f4 {[%clk 0:13:42.1]} 47... Bd4 {[%clk 0:12:31.3]}
48. f5 {[%clk 0:13:30.1]} 48... Re3+ {[%clk 0:12:24.3]} 49. Kh4 {[%clk
0:13:30.9]} 49... Bf6+ {[%clk 0:12:25.9]} 50. Kh5 {[%clk 0:13:32.5]} 50... d4
{[%clk 0:12:28.4]} 51. g5 {[%clk 0:13:33.6]} 51... Be5 {[%clk 0:12:27.3]} 52. g6
{[%clk 0:13:36.5]} 52... Ke4 {[%clk 0:12:21.7]} 53. g7 {[%clk 0:13:35]} 53...
Rxa3 {[%clk 0:12:14.1]} 54. g8=Q {[%clk 0:13:34.5]} 54... d3 {[%clk 0:12:18.4]}
55. Qg1 {[%clk 0:13:35.9]} 55... d2 {[%clk 0:12:21.6]} 56. Qd1 {[%clk
0:13:38.1]} 56... Rd3 {[%clk 0:12:24.6]} 57. a3 {[%clk 0:13:33.9]} 57... Bf4
{[%clk 0:12:21.3]} 58. a4 {[%clk 0:13:32.4]} 58... Rh3+ {[%clk 0:12:17.1]} 59.
Kg6 {[%clk 0:13:33.7]} 59... Rxh7 {[%clk 0:12:17.2]} 60. Kxh7 {[%clk 0:13:37.1]}
60... Kxf5 {[%clk 0:12:21.6]} 61. a5 {[%clk 0:13:39.4]} 61... Ke5 {[%clk
0:12:26.1]} 62. a6 {[%clk 0:13:42.7]} 62... Kd6 {[%clk 0:12:30.2]} 63. a7 {[%clk
0:13:46.7]} 63... Kc7 {[%clk 0:12:28.7]} 64. a8=Q {[%clk 0:13:49.3]} 64... Kb6
{[%clk 0:12:31.3]} 65. Qd8+ {[%clk 0:13:50.8]} 65... Kc6 {[%clk 0:12:32.7]} 66.
Q8xd2 {[%clk 0:13:53.4]} 66... Bxd2 {[%clk 0:12:34.4]} 67. Qxd2 {[%clk
0:13:57.1]} 67... Kc5 {[%clk 0:12:38.1]} 68. Qc2+ {[%clk 0:14:00.1]} 68... Kd4
{[%clk 0:12:41.4]} 69. Qa4+ {[%clk 0:14:03]} 69... Kc5 {[%clk 0:12:43.9]} 70.
Qe4 {[%clk 0:14:05.9]} 70... Kb5 {[%clk 0:12:45.6]} 71. Qe5+ {[%clk 0:14:10.1]}
71... Kc4 {[%clk 0:12:49.7]} 72. Qd6 {[%clk 0:14:13]} 72... Kb5 {[%clk
0:12:51.9]} 73. Qd5+ {[%clk 0:14:15.8]} 73... Kb4 {[%clk 0:12:55]} 74. Qd4+
{[%clk 0:14:18.9]} 74... Kb5 {[%clk 0:12:57.3]} 75. Qb2+ {[%clk 0:14:21.1]}
75... Kc6 {[%clk 0:13:01.4]} 76. Qc3+ {[%clk 0:14:22]} 76... Kd5 {[%clk
0:13:05.7]} 77. Qe3 {[%clk 0:14:23.4]} 77... Kd6 {[%clk 0:13:09]} 78. Qf3 {[%clk
0:14:27.6]} 78... Kc5 {[%clk 0:13:12.1]} 79. Qf4 {[%clk 0:14:31.7]} 79... Kd5
{[%clk 0:13:15.2]} 80. Qf5+ {[%clk 0:14:35.9]} 80... Kd4 {[%clk 0:13:15.5]} 81.
Qf6+ {[%clk 0:14:40]} 81... Kd5 {[%clk 0:13:18.1]} 82. Qf7+ {[%clk 0:14:42.4]}
82... Ke4 {[%clk 0:13:19]} 83. Qe7+ {[%clk 0:14:46]} 83... Kd4 {[%clk
0:13:21.2]} 84. Qd7+ {[%clk 0:14:49.9]} 84... Ke5 {[%clk 0:13:24.8]} 85. Qe7+
{[%clk 0:14:53.6]} 85... Kd4 {[%clk 0:13:29.1]} 86. Qd7+ {[%clk 0:14:57.7]}
86... Ke5 {[%clk 0:13:33.6]} 87. Qc7+ {[%clk 0:15:01.9]} 87... Kd4 {[%clk
0:13:35.2]} 88. Qg7+ {[%clk 0:15:04.5]} 88... Kd5 {[%clk 0:13:38.5]} 89. Qf7+
{[%clk 0:15:07.1]} 89... Ke5 {[%clk 0:13:42.8]} 90. Qe7+ {[%clk 0:15:11]} 90...
Kd4 {[%clk 0:13:47.3]} 1/2-1/2

[Event "Live Chess"]
[Site "Chess.com"]
[Date "2023.09.16"]
[Round "-"]
[White "Enzoellobo"]
[Black "GigiAlmeidaXadrez"]
[Result "0-1"]
[WhiteElo "172"]
[BlackElo "1074"]
[TimeControl "900+5"]
[EndTime "7:46:21 PDT"]
[Termination "GigiAlmeidaXadrez venceu por xeque-mate"]

1. e4 {[%clk 0:15:01.2]} 1... c5 {[%clk 0:15:02.1]} 2. d4 {[%clk 0:15:01.6]}
2... cxd4 {[%clk 0:15:03.9]} 3. Bc4 {[%clk 0:15:04.5]} 3... Nc6 {[%clk
0:15:01.5]} 4. Qh5 {[%clk 0:15:06.7]} 4... e6 {[%clk 0:15:01.9]} 5. Bg5 {[%clk
0:14:57.3]} 5... Qa5+ {[%clk 0:14:51.4]} 6. b4 {[%clk 0:14:56]} 6... Qxb4+
{[%clk 0:14:48.5]} 7. Nd2 {[%clk 0:14:51.2]} 7... g6 {[%clk 0:14:27.7]} 8. Qg4
{[%clk 0:14:49.6]} 8... Ne5 {[%clk 0:14:20.7]} 9. Qf4 {[%clk 0:14:47.7]} 9...
Nxc4 {[%clk 0:14:14.3]} 10. Nf3 {[%clk 0:14:39.7]} 10... Nxd2 {[%clk 0:13:53.4]}
11. Nxd2 {[%clk 0:14:39.8]} 11... Bg7 {[%clk 0:13:37.1]} 12. Rb1 {[%clk
0:14:41.2]} 12... Qc3 {[%clk 0:13:21.6]} 13. e5 {[%clk 0:14:30]} 13... Qxc2
{[%clk 0:12:51.2]} 14. Ke2 {[%clk 0:14:14.9]} 14... d3+ {[%clk 0:12:26.2]} 15.
Ke1 {[%clk 0:14:11.8]} 15... Qxa2 {[%clk 0:12:13.6]} 16. Kf1 {[%clk 0:14:08.6]}
16... Ne7 {[%clk 0:11:28]} 17. h4 {[%clk 0:14:02.5]} 17... Nd5 {[%clk
0:11:20.5]} 18. Qc4 {[%clk 0:13:54.9]} 18... Qa3 {[%clk 0:11:01.7]} 19. Rb3
{[%clk 0:13:51.9]} 19... Qa1+ {[%clk 0:10:40.7]} 20. Rb1 {[%clk 0:13:48.4]}
20... Qxe5 {[%clk 0:10:38.7]} 21. Ne4 {[%clk 0:13:42.1]} 21... Nb6 {[%clk
0:10:13.6]} 22. Qxd3 {[%clk 0:13:40.4]} 22... d5 {[%clk 0:09:43.3]} 23. Ng3
{[%clk 0:13:34.6]} 23... O-O {[%clk 0:09:16.7]} 24. Rh3 {[%clk 0:13:20.9]} 24...
Qd6 {[%clk 0:08:46.6]} 25. f4 {[%clk 0:13:09.8]} 25... e5 {[%clk 0:08:26.8]} 26.
fxe5 {[%clk 0:12:56.8]} 26... Qxe5 {[%clk 0:08:24.8]} 27. h5 {[%clk 0:12:55]}
27... Bxh3 {[%clk 0:08:18.3]} 28. hxg6 {[%clk 0:12:56.6]} 28... fxg6+ {[%clk
0:08:15.2]} 29. Bf4 {[%clk 0:12:33]} 29... Qxf4+ {[%clk 0:08:12.6]} 30. Kg1
{[%clk 0:12:34.1]} 30... Qf2+ {[%clk 0:08:12]} 31. Kh2 {[%clk 0:12:34.1]} 31...
Qxg2# {[%clk 0:08:15.2]} 0-1

[Event "Live Chess"]
[Site "Chess.com"]
[Date "2023.09.16"]
[Round "-"]
[White "Enzoellobo"]
[Black "kadabraxadrez"]
[Result "0-1"]
[WhiteElo "172"]
[BlackElo "979"]
[TimeControl "900+5"]
[EndTime "7:50:27 PDT"]
[Termination "kadabraxadrez venceu por xeque-mate"]

1. e4 {[%clk 0:15:00.5]} 1... e5 {[%clk 0:15:03.3]} 2. d4 {[%clk 0:15:02.8]}
2... exd4 {[%clk 0:15:04.3]} 3. Bc4 {[%clk 0:15:02.6]} 3... Nc6 {[%clk
0:15:03.8]} 4. Qh5 {[%clk 0:15:04.2]} 4... g6 {[%clk 0:15:02.5]} 5. Qh4 {[%clk
0:14:53.3]} 5... Qxh4 {[%clk 0:15:03.2]} 6. g3 {[%clk 0:14:54.5]} 6... Qxe4+
{[%clk 0:15:06]} 7. Kd2 {[%clk 0:14:50.2]} 7... Qxh1 {[%clk 0:15:08.3]} 8. Nc3
{[%clk 0:14:49.2]} 8... dxc3+ {[%clk 0:15:11.4]} 9. bxc3 {[%clk 0:14:51.2]} 9...
Qxg1 {[%clk 0:15:12.9]} 10. Rb1 {[%clk 0:14:50.4]} 10... Nf6 {[%clk 0:15:08.3]}
11. Rb5 {[%clk 0:14:47.5]} 11... Ne4+ {[%clk 0:15:04.3]} 12. Kd3 {[%clk
0:14:45.9]} 12... Nxf2+ {[%clk 0:15:02.3]} 13. Ke3 {[%clk 0:14:44.1]} 13... Nd1+
{[%clk 0:15:04]} 14. Ke4 {[%clk 0:14:42]} 14... Nxc3+ {[%clk 0:15:07.3]} 15. Kf4
{[%clk 0:14:43.7]} 15... Nxb5 {[%clk 0:15:09.7]} 16. Kg5 {[%clk 0:14:41.6]}
16... Qxc1+ {[%clk 0:15:09.6]} 17. Kf6 {[%clk 0:14:42.2]} 17... Be7+ {[%clk
0:15:10.9]} 18. Kg7 {[%clk 0:14:43.8]} 18... Qb2+ {[%clk 0:15:09.7]} 19. c3
{[%clk 0:14:38.3]} 19... Qxc3+ {[%clk 0:15:12.3]} 20. Kh6 {[%clk 0:14:37]} 20...
Qxc4 {[%clk 0:15:14]} 21. a4 {[%clk 0:14:36.6]} 21... Nd6 {[%clk 0:15:16.6]} 22.
a5 {[%clk 0:14:38.9]} 22... Nf5# {[%clk 0:15:18.7]} 0-1

[Event "Live Chess"]
[Site "Chess.com"]
[Date "2023.09.16"]
[Round "-"]
[White "RenatoMizuki"]
[Black "Timsoso"]
[Result "1-0"]
[WhiteElo "1141"]
[BlackElo "274"]
[TimeControl "900+5"]
[EndTime "7:50:39 PDT"]
[Termination "RenatoMizuki venceu por xeque-mate"]

1. e4 {[%clk 0:15:02.2]} 1... e5 {[%clk 0:14:56.7]} 2. Nf3 {[%clk 0:15:05.7]}
2... Nf6 {[%clk 0:14:58.7]} 3. Nc3 {[%clk 0:15:06.3]} 3... Nc6 {[%clk
0:15:00.1]} 4. Bc4 {[%clk 0:15:09.3]} 4... Bc5 {[%clk 0:14:58.1]} 5. a3 {[%clk
0:15:05.8]} 5... a6 {[%clk 0:14:59.3]} 6. h3 {[%clk 0:15:07.6]} 6... h6 {[%clk
0:14:59.9]} 7. O-O {[%clk 0:15:04.9]} 7... O-O {[%clk 0:15:01.5]} 8. Ne2 {[%clk
0:14:47.7]} 8... Ne7 {[%clk 0:15:01.9]} 9. b4 {[%clk 0:14:39.9]} 9... b5 {[%clk
0:15:03.3]} 10. bxc5 {[%clk 0:14:41.2]} 10... bxc4 {[%clk 0:15:04.4]} 11. d3
{[%clk 0:14:37.2]} 11... d6 {[%clk 0:15:05.5]} 12. dxc4 {[%clk 0:14:38.1]} 12...
dxc5 {[%clk 0:15:06.9]} 13. Qxd8 {[%clk 0:14:41]} 13... Rxd8 {[%clk 0:15:09.5]}
14. Nxe5 {[%clk 0:14:42.1]} 14... Rb8 {[%clk 0:14:44]} 15. f3 {[%clk 0:13:15]}
15... g6 {[%clk 0:14:31.4]} 16. Bxh6 {[%clk 0:13:12.9]} 16... Kh7 {[%clk
0:14:31.5]} 17. Nxf7 {[%clk 0:13:08.4]} 17... Be6 {[%clk 0:14:26.5]} 18. Nxd8
{[%clk 0:13:10.2]} 18... Rxd8 {[%clk 0:14:27.8]} 19. Bg5 {[%clk 0:13:08.9]}
19... Kg7 {[%clk 0:14:24]} 20. e5 {[%clk 0:13:04.1]} 20... Ne8 {[%clk
0:14:06.9]} 21. Bxe7 {[%clk 0:13:04.4]} 21... Kf7 {[%clk 0:14:09.3]} 22. Bxd8
{[%clk 0:13:06.8]} 22... Kf8 {[%clk 0:14:09.9]} 23. Bg5 {[%clk 0:13:04.1]} 23...
Bxc4 {[%clk 0:14:03.8]} 24. Rfe1 {[%clk 0:13:02.8]} 24... Nd6 {[%clk 0:13:59.7]}
25. exd6 {[%clk 0:13:00.8]} 25... cxd6 {[%clk 0:14:02.7]} 26. Rad1 {[%clk
0:12:30.6]} 26... Bf7 {[%clk 0:14:02.5]} 27. Rxd6 {[%clk 0:12:32.6]} 27... Kg7
{[%clk 0:14:00.8]} 28. Bf6+ {[%clk 0:12:31.6]} 28... Kh6 {[%clk 0:13:58.6]} 29.
g4 {[%clk 0:12:27.6]} 29... g5 {[%clk 0:13:46.7]} 30. Bxg5+ {[%clk 0:12:28.1]}
30... Kxg5 {[%clk 0:13:43.9]} 31. f4+ {[%clk 0:12:31.7]} 31... Kh4 {[%clk
0:13:44.7]} 32. Rh6+ {[%clk 0:12:32.2]} 32... Bh5 {[%clk 0:13:48]} 33. Rxh5#
{[%clk 0:12:36.4]} 1-0

[Event "Live Chess"]
[Site "Chess.com"]
[Date "2023.09.16"]
[Round "-"]
[White "kadabraxadrez"]
[Black "DaviLucasMoraisLima"]
[Result "0-1"]
[WhiteElo "969"]
[BlackElo "1225"]
[TimeControl "900+5"]
[EndTime "7:52:08 PDT"]
[Termination "DaviLucasMoraisLima venceu por desistência"]

1. e4 {[%clk 0:15:01.5]} 1... e5 {[%clk 0:15:03]} 2. Nf3 {[%clk 0:15:04.9]} 2...
d6 {[%clk 0:15:06.4]} 3. Bc4 {[%clk 0:15:04.5]} 3... Bg4 {[%clk 0:15:08.8]} 4.
h3 {[%clk 0:15:05.3]} 4... Bh5 {[%clk 0:15:11]} 5. Nc3 {[%clk 0:15:04.5]} 5...
Nc6 {[%clk 0:15:11.5]} 6. d3 {[%clk 0:15:06]} 6... Nd4 {[%clk 0:15:12.3]} 7. Be3
{[%clk 0:15:03.3]} 7... Nxf3+ {[%clk 0:15:12.4]} 8. gxf3 {[%clk 0:15:06.2]} 8...
Qf6 {[%clk 0:15:12.9]} 9. Qe2 {[%clk 0:15:04.8]} 9... Bxf3 {[%clk 0:15:13.3]}
10. Qf1 {[%clk 0:15:04.5]} 10... Bxh1 {[%clk 0:15:10.9]} 11. Qxh1 {[%clk
0:15:04.5]} 0-1

[Event "Live Chess"]
[Site "Chess.com"]
[Date "2023.09.16"]
[Round "-"]
[White "Timsoso"]
[Black "DaviLucasMoraisLima"]
[Result "0-1"]
[WhiteElo "274"]
[BlackElo "1225"]
[TimeControl "900+5"]
[EndTime "7:55:55 PDT"]
[Termination "DaviLucasMoraisLima venceu por xeque-mate"]

1. e4 {[%clk 0:14:58.7]} 1... e5 {[%clk 0:15:02.9]} 2. Nf3 {[%clk 0:15:00.2]}
2... d6 {[%clk 0:15:06.4]} 3. d4 {[%clk 0:15:03.3]} 3... exd4 {[%clk 0:15:09.5]}
4. Bc4 {[%clk 0:15:05.9]} 4... Bg4 {[%clk 0:15:11.2]} 5. Nxd4 {[%clk 0:15:04.7]}
5... Bxd1 {[%clk 0:15:13.1]} 6. Nc3 {[%clk 0:15:06.3]} 6... Bh5 {[%clk
0:15:10.6]} 7. e5 {[%clk 0:15:03.8]} 7... dxe5 {[%clk 0:15:12.3]} 8. Bxf7+
{[%clk 0:15:05.1]} 8... Kxf7 {[%clk 0:15:14.5]} 9. Ne4 {[%clk 0:15:04]} 9...
Qxd4 {[%clk 0:15:16.2]} 10. Ng5+ {[%clk 0:15:02.5]} 10... Ke8 {[%clk 0:15:16.1]}
11. Be3 {[%clk 0:15:01]} 11... Qxb2 {[%clk 0:15:17.6]} 12. O-O {[%clk
0:15:00.4]} 12... Be7 {[%clk 0:15:07.6]} 13. Nf3 {[%clk 0:14:57.4]} 13... Bxf3
{[%clk 0:15:06.1]} 14. gxf3 {[%clk 0:15:00.1]} 14... Qxc2 {[%clk 0:15:08.1]} 15.
Bc1 {[%clk 0:15:01]} 15... Qg6+ {[%clk 0:15:09.4]} 16. Kh1 {[%clk 0:14:53.2]}
16... e4 {[%clk 0:15:07.1]} 17. fxe4 {[%clk 0:14:55.4]} 17... Qxe4+ {[%clk
0:15:08.8]} 18. Kg1 {[%clk 0:14:56.8]} 18... Bd6 {[%clk 0:15:03.6]} 19. f3
{[%clk 0:14:57.7]} 19... Qh4 {[%clk 0:15:01.5]} 20. Bf4 {[%clk 0:14:54.3]} 20...
Bxf4 {[%clk 0:15:03.3]} 21. Kh1 {[%clk 0:14:53.2]} 21... Qxh2# {[%clk
0:15:05.2]} 0-1

[Event "Live Chess"]
[Site "Chess.com"]
[Date "2023.09.16"]
[Round "-"]
[White "DaviLucasMoraisLima"]
[Black "GigiAlmeidaXadrez"]
[Result "1-0"]
[WhiteElo "1230"]
[BlackElo "1068"]
[TimeControl "900+5"]
[EndTime "7:58:22 PDT"]
[Termination "DaviLucasMoraisLima venceu por xeque-mate"]

1. e4 {[%clk 0:15:01.2]} 1... c5 {[%clk 0:15:03.3]} 2. Bc4 {[%clk 0:15:02.6]}
2... d6 {[%clk 0:15:05.5]} 3. Qh5 {[%clk 0:15:04.5]} 3... e6 {[%clk 0:15:08.2]}
4. Nf3 {[%clk 0:15:05.8]} 4... Nf6 {[%clk 0:15:08.6]} 5. Qh4 {[%clk 0:15:06.2]}
5... g6 {[%clk 0:15:04.4]} 6. d3 {[%clk 0:15:05.9]} 6... Bg7 {[%clk 0:14:54.6]}
7. Ng5 {[%clk 0:15:02.2]} 7... O-O {[%clk 0:14:53.8]} 8. b3 {[%clk 0:15:03.4]}
8... Nc6 {[%clk 0:14:49.7]} 9. Bb2 {[%clk 0:15:05.6]} 9... a6 {[%clk 0:14:24.3]}
10. Bxf6 {[%clk 0:15:08]} 10... Qxf6 {[%clk 0:14:19.1]} 11. Qxh7# {[%clk
0:15:10]} 1-0

[Event "Live Chess"]
[Site "Chess.com"]
[Date "2023.09.16"]
[Round "-"]
[White "Dfran2015"]
[Black "Enzoellobo"]
[Result "1/2-1/2"]
[WhiteElo "519"]
[BlackElo "179"]
[TimeControl "900+5"]
[EndTime "8:00:19 PDT"]
[Termination "Empate por afogamento"]

1. e4 {[%clk 0:15:01.8]} 1... e5 {[%clk 0:15:00.6]} 2. Nf3 {[%clk 0:15:06]} 2...
d5 {[%clk 0:14:59.1]} 3. Nxe5 {[%clk 0:15:00.3]} 3... Bb4 {[%clk 0:14:53.8]} 4.
Qf3 {[%clk 0:15:01.6]} 4... Qg5 {[%clk 0:14:53.2]} 5. Qxf7+ {[%clk 0:15:00.7]}
5... Kd8 {[%clk 0:14:53.6]} 6. Qf8+ {[%clk 0:15:03.8]} 6... Bxf8 {[%clk
0:14:51]} 7. Nf7+ {[%clk 0:15:04.8]} 7... Ke8 {[%clk 0:14:52.9]} 8. Nxg5 {[%clk
0:15:09.3]} 8... Nf6 {[%clk 0:14:54.4]} 9. Bd3 {[%clk 0:15:09.2]} 9... Be7
{[%clk 0:14:50.5]} 10. O-O {[%clk 0:15:13.4]} 10... Kf8 {[%clk 0:14:51.6]} 11.
exd5 {[%clk 0:15:10.1]} 11... Bg4 {[%clk 0:14:43.8]} 12. Nc3 {[%clk 0:14:57.9]}
12... Bc5 {[%clk 0:14:36.4]} 13. Ne6+ {[%clk 0:14:41.9]} 13... Ke7 {[%clk
0:14:36.8]} 14. Nxc5 {[%clk 0:14:40.2]} 14... b6 {[%clk 0:14:38.7]} 15. N5e4
{[%clk 0:14:30]} 15... h5 {[%clk 0:14:35.9]} 16. Nxf6 {[%clk 0:14:30.6]} 16...
gxf6 {[%clk 0:14:36.8]} 17. Be2 {[%clk 0:14:28]} 17... h4 {[%clk 0:14:26.7]} 18.
Bxg4 {[%clk 0:14:30.7]} 18... Rg8 {[%clk 0:14:22.7]} 19. Re1+ {[%clk 0:14:33.1]}
19... Kd8 {[%clk 0:14:21.5]} 20. Bh3 {[%clk 0:14:22.7]} 20... Nd7 {[%clk
0:14:19.7]} 21. d6 {[%clk 0:14:10.9]} 21... cxd6 {[%clk 0:14:22.1]} 22. Nd5
{[%clk 0:14:13.7]} 22... Rc8 {[%clk 0:14:22.6]} 23. Nxf6 {[%clk 0:14:02.1]}
23... Nxf6 {[%clk 0:14:21.8]} 24. Bxc8 {[%clk 0:14:04.7]} 24... Kxc8 {[%clk
0:14:23.6]} 25. Re6 {[%clk 0:14:06.8]} 25... Kd7 {[%clk 0:14:20.6]} 26. Rxf6
{[%clk 0:14:08.4]} 26... Re8 {[%clk 0:14:23.2]} 27. Rf7+ {[%clk 0:14:08.7]}
27... Kd8 {[%clk 0:14:24.2]} 28. g3 {[%clk 0:14:06.9]} 28... h3 {[%clk
0:14:18.1]} 29. f3 {[%clk 0:14:03.1]} 29... Re1+ {[%clk 0:14:10.1]} 30. Kf2
{[%clk 0:14:03.8]} 30... Rh1 {[%clk 0:14:07.2]} 31. d3 {[%clk 0:14:02.5]} 31...
Rxh2+ {[%clk 0:14:09.6]} 32. Kg1 {[%clk 0:14:03.1]} 32... Rg2+ {[%clk
0:14:10.4]} 33. Kf1 {[%clk 0:14:06.7]} 33... Ke8 {[%clk 0:14:08.8]} 34. Rxa7
{[%clk 0:14:07.2]} 34... h2 {[%clk 0:14:09]} 35. Kxg2 {[%clk 0:14:06.1]} 35...
h1=Q+ {[%clk 0:13:58.2]} 36. Kxh1 {[%clk 0:14:08.5]} 36... b5 {[%clk 0:13:53.6]}
37. Rb7 {[%clk 0:14:10.3]} 37... d5 {[%clk 0:13:56.6]} 38. Rxb5 {[%clk
0:14:11.8]} 38... d4 {[%clk 0:14:00]} 39. Rd5 {[%clk 0:14:07.7]} 39... Ke7
{[%clk 0:14:00.3]} 40. Rxd4 {[%clk 0:14:10.8]} 40... Kf6 {[%clk 0:14:03.1]} 41.
g4 {[%clk 0:14:13.1]} 41... Ke5 {[%clk 0:14:04]} 42. c3 {[%clk 0:14:13.2]} 42...
Ke6 {[%clk 0:14:06.3]} 43. g5 {[%clk 0:14:15.4]} 43... Ke5 {[%clk 0:14:09.2]}
44. f4+ {[%clk 0:14:17.7]} 44... Kf5 {[%clk 0:14:10.5]} 45. b4 {[%clk
0:14:19.5]} 45... Kg4 {[%clk 0:14:12.3]} 46. g6 {[%clk 0:14:20.3]} 46... Kh5
{[%clk 0:14:11.6]} 47. g7 {[%clk 0:14:24.4]} 47... Kh4 {[%clk 0:14:15.1]} 48.
g8=Q {[%clk 0:14:26]} 48... Kh3 {[%clk 0:14:17.7]} 49. f5 {[%clk 0:14:24.4]}
1/2-1/2

[Event "Live Chess"]
[Site "Chess.com"]
[Date "2023.09.16"]
[Round "-"]
[White "GigiAlmeidaXadrez"]
[Black "Timsoso"]
[Result "1-0"]
[WhiteElo "1068"]
[BlackElo "274"]
[TimeControl "900+5"]
[EndTime "8:02:35 PDT"]
[Termination "GigiAlmeidaXadrez venceu por xeque-mate"]

1. e4 {[%clk 0:15:02.6]} 1... Nf6 {[%clk 0:14:56.7]} 2. Nc3 {[%clk 0:15:03.8]}
2... g6 {[%clk 0:14:59.4]} 3. d4 {[%clk 0:15:04.6]} 3... Bg7 {[%clk 0:15:02.7]}
4. Nf3 {[%clk 0:15:07.3]} 4... O-O {[%clk 0:15:04.2]} 5. Bc4 {[%clk 0:15:09.3]}
5... Nc6 {[%clk 0:15:04.5]} 6. O-O {[%clk 0:15:10.7]} 6... b6 {[%clk 0:15:07.9]}
7. Bd2 {[%clk 0:15:02.2]} 7... Ba6 {[%clk 0:15:10.8]} 8. Bxa6 {[%clk 0:15:03.9]}
8... Qb8 {[%clk 0:15:10.6]} 9. Bb5 {[%clk 0:15:01.8]} 9... Qb7 {[%clk
0:15:13.7]} 10. Qc1 {[%clk 0:14:50.5]} 10... Kh8 {[%clk 0:14:49.7]} 11. Bh6
{[%clk 0:14:47.3]} 11... Bxh6 {[%clk 0:14:45.7]} 12. Qxh6 {[%clk 0:14:49.4]}
12... a6 {[%clk 0:14:42]} 13. Bxc6 {[%clk 0:14:50.7]} 13... dxc6 {[%clk
0:14:43.9]} 14. Ng5 {[%clk 0:14:36]} 14... Rg8 {[%clk 0:14:30.5]} 15. Nxf7#
{[%clk 0:14:20.3]} 1-0

[Event "Live Chess"]
[Site "Chess.com"]
[Date "2023.09.16"]
[Round "-"]
[White "Dfran2015"]
[Black "DaviLucasMoraisLima"]
[Result "0-1"]
[WhiteElo "518"]
[BlackElo "1230"]
[TimeControl "900+5"]
[EndTime "8:06:00 PDT"]
[Termination "DaviLucasMoraisLima venceu por desistência"]

1. e4 {[%clk 0:15:03.8]} 1... e5 {[%clk 0:15:02.4]} 2. Nf3 {[%clk 0:15:08.4]}
2... d6 {[%clk 0:15:05.7]} 3. Bc4 {[%clk 0:15:11.8]} 3... Bg4 {[%clk 0:15:09.2]}
4. O-O {[%clk 0:15:14.4]} 4... Nc6 {[%clk 0:15:12.1]} 5. h3 {[%clk 0:15:16.6]}
5... Bh5 {[%clk 0:15:14.2]} 6. Be2 {[%clk 0:15:07.2]} 6... Nf6 {[%clk
0:15:10.2]} 7. Ng5 {[%clk 0:15:04.3]} 7... Bxe2 {[%clk 0:15:11.3]} 8. Qxe2
{[%clk 0:15:05.8]} 8... Nd4 {[%clk 0:15:11.2]} 9. Qd3 {[%clk 0:14:58.8]} 9... d5
{[%clk 0:15:04.1]} 10. exd5 {[%clk 0:14:53.7]} 10... Qxd5 {[%clk 0:15:03.1]} 11.
c3 {[%clk 0:14:46.6]} 11... Nc6 {[%clk 0:14:47.4]} 12. Qxd5 {[%clk 0:14:43.1]}
12... Nxd5 {[%clk 0:14:49.7]} 13. c4 {[%clk 0:14:41.4]} 13... Ndb4 {[%clk
0:14:48.5]} 14. Ne4 {[%clk 0:14:12.6]} 14... Nc2 {[%clk 0:14:50]} 15. d3 {[%clk
0:14:07]} 15... Nxa1 {[%clk 0:14:51.6]} 16. Nbc3 {[%clk 0:14:07.9]} 16... Nc2
{[%clk 0:14:54]} 17. Nd5 {[%clk 0:14:04.5]} 17... O-O-O {[%clk 0:14:55.5]} 18.
Bg5 {[%clk 0:13:56.6]} 18... f6 {[%clk 0:14:57.6]} 19. Nexf6 {[%clk 0:13:55.1]}
19... gxf6 {[%clk 0:14:59.4]} 20. Bxf6 {[%clk 0:13:59.6]} 20... Bc5 {[%clk
0:15:01.3]} 21. Bxh8 {[%clk 0:13:59.3]} 21... Rxh8 {[%clk 0:15:03.4]} 22. Ne7+
{[%clk 0:14:01.8]} 22... Nxe7 {[%clk 0:15:05.5]} 23. Re1 {[%clk 0:14:04.7]}
23... Nxe1 {[%clk 0:15:02.6]} 24. Kh2 {[%clk 0:14:09]} 24... Bd6 {[%clk
0:14:59.6]} 25. Kg3 {[%clk 0:14:13.1]} 25... e4+ {[%clk 0:15:01.6]} 26. Kg4
{[%clk 0:14:17.4]} 26... Rg8+ {[%clk 0:15:04]} 27. Kh5 {[%clk 0:14:19.4]} 27...
Bf4 {[%clk 0:14:58.4]} 28. Kh4 {[%clk 0:14:20.9]} 28... Nf5+ {[%clk 0:14:59.8]}
0-1